Cogmind - Beta 16 @@@ ROGUE MODE // 2025.10.22 @ 03:16:26 Player: shapeshifter Result: Self-destructed Performance ------------- Evolutions (1) 500 Regions Visited (3) 600 Robots Destroyed (8) 40 Value Destroyed (212) 212 Prototype IDs (2) 40 Alien Tech Used (0) 0 Bonus (0) 0 TOTAL SCORE: 1392 Bonus ------- None Cogmind --------- Core Integrity 210/400 Matter 194/300 Energy 23/100 System Corruption 0% Temperature Warm (133) Movement Core (750) Ox14 Location -9/Materials Parts ------- > --- POWER (1) -------- (None) > --- PROPULSION (3) --- (None) > --- UTILITY (3) ------ High-capacity Storage Unit Improved Terrain Scanner Improved Terrain Scan Processor > --- WEAPON (2) ------- Advanced Beam Cannon > --- INVENTORY (20) --- Ion Engine Light Treads Carbon-fiber Leg Carbon-fiber Leg Carbon-fiber Leg Carbon-fiber Leg Medium Storage Unit Heavy Particle Gun Heavy Particle Gun Heavy Particle Gun Heavy Particle Gun Ripper Peak State ------------ > --- POWER ------------ Ion Engine > --- PROPULSION ------- Wheel Wheel Compact Wheel > --- UTILITY ---------- High-capacity Storage Unit Improved Terrain Scanner Improved Terrain Scan Processor > --- WEAPON ----------- Spread Laser Advanced Beam Cannon > --- INVENTORY -------- Ion Engine Light Treads Carbon-fiber Leg Carbon-fiber Leg Carbon-fiber Leg Carbon-fiber Leg Medium Storage Unit Heavy Particle Gun Heavy Particle Gun Heavy Particle Gun Heavy Particle Gun Assault Rifle Ripper [Rating: 19] Favorites ----------- Power Ion Engine Engine Ion Engine Propulsion Light Treads Treads Light Treads Wheel Wheel Utility Small Storage Unit Device Seismic Detector Storage Small Storage Unit Processor Improved Terrain Scan Processor Weapon Small Laser Energy Gun Small Laser Energy Cannon Advanced Beam Cannon Ballistic Gun Assault Rifle Build | -11 -10 -10 -9 ------- Run | Yrd Mat Min Mat Slots Evolved 2 | . . . 2 Power . | . . . . Propulsion 1 | . . . 1 Utility 1 | . . . 1 Weapon . | . . . . Parts Attached 17 | 7 . . 10 Power 1 | 1 . . . Engine 1 | 1 . . . Core . | . . . . Reactor . | . . . . Propulsion 5 | 2 . . 3 Treads 2 | 2 . . . Leg . | . . . . Wheel 3 | . . . 3 Hover . | . . . . Flight . | . . . . Utility 6 | 2 . . 4 Device 2 | 1 . . 1 Storage 3 | 1 . . 2 Processor 1 | . . . 1 Hackware . | . . . . Protection . | . . . . Artifact . | . . . . Weapon 5 | 2 . . 3 Energy Gun 3 | 1 . . 2 Energy Cannon 1 | . . . 1 Ballistic Gun 1 | 1 . . . Ballistic Cannon . | . . . . Launcher . | . . . . Special Weapon . | . . . . Impact Weapon . | . . . . Slashing Weapon . | . . . . Piercing Weapon . | . . . . Special Melee Weapon . | . . . . Unidentified Prototypes 2 | . . . 2 Parts Lost 8 | . . 2 6 Power 1 | . . . 1 Propulsion 4 | . . 1 3 Utility 1 | . . 1 . Weapon 2 | . . . 2 Highest Loss Streak 6 | . . 1 6 To Critical Strikes . | . . . . Average Backups 6 | 4 6 6 9 Power . | . 1 1 1 Propulsion 2 | 1 3 3 3 Utility 1 | . 1 1 1 Weapon 1 | 1 1 1 3 Tool/Special . | . . . . Unused Backups 12 | . . 2 10 Power 2 | . . 1 1 Propulsion 4 | . . . 4 Utility 1 | . . . 1 Weapon 5 | . . 1 4 Tool/Special . | . . . . Average Slot Usage (%) 93 | . 100 94 85 Engine 13 | . 14 14 9 Treads 22 | . 28 26 1 Wheel 4 | . . . 26 Device 10 | . 14 10 8 Storage 13 | . 14 14 12 Energy Gun 13 | . 14 14 12 Energy Cannon 1 | . . . 7 Ballistic Gun 12 | . 14 14 1 Peak Build Rating 19 | 7 7 8 19 Average Rating 7 | 4 7 6 14 On Entrance 5 | . 7 7 6 Avg Prop Armor Cover (%) . | . . . . Naked Turns . | . . . . Heaviest Build 63 | 14 14 14 63 Greatest Support 40 | 40 40 40 36 Greatest Overweight (x) 1 | . . . 1 Average Overweight (x) . | . . . . Largest Inventory Capacity 20 | 8 8 8 20 Average Capacity 8 | 7 8 8 14 Most Carried 13 | 7 6 8 13 Average Carried 6 | 4 6 6 9 Final Capacity 20 | 8 8 8 20 Final Carried 12 | 6 6 8 12 Class Distribution -------------------- 100% | Mutant Dominant Class ---------------- Mutant | -10/Materials Mutant | -10/Mines Mutant | -9/Materials Resources | -11 -10 -10 -9 ----------- Run | Yrd Mat Min Mat Matter Collected 326 | 161 . 165 . Remotely . | . . . . Salvage Created 263 | 37 . 191 35 Parts 22 | 9 . 10 3 Haulers Intercepted . | . . . . Recyclers Shooed . | . . . . Parts Field Recycled . | . . . . Retrieved Matter . | . . . . Parts Self-Destructed . | . . . . Prevented . | . . . . Parts Restored . | . . . . Kills | -11 -10 -10 -9 ------- Run | Yrd Mat Min Mat Combat Hostiles Destroyed 5 | . . 4 1 Guns 5 | . . 4 1 Classes Destroyed 4 | 1 . 1 2 Tunneler 2 | 2 . . . Watcher 1 | . . . 1 Swarmer 1 | . . . 1 Grunt 4 | . . 4 . Best Kill Streak 2 | 2 . 2 1 Combat Bots Only 2 | . . 2 1 Max Kills in Single Turn 1 | 1 . 1 1 Gunslinging . | . . . . Exploded . | . . . . Melee . | . . . . Uniques/NPCs Destroyed . | . . . . Combat | -11 -10 -10 -9 -------- Run | Yrd Mat Min Mat Hostile Shots Fired 117 | . . 34 83 Missed 25 | . . 6 19 Hits 92 | . . 28 64 Projectile 92 | . . 28 64 Critical Strikes 3 | . . 1 2 Damage Taken 1070 | . . 386 684 Core 232 | . . 42 190 Absorbed by Shields . | . . . . Core Remaining (%) 91 | 100 . 83 . Volleys Fired 31 | 2 . 20 9 Largest 2 | 2 . 2 2 Hottest 133 | 60 . 60 133 Shots Fired 58 | 4 . 40 14 Gun 54 | 4 . 40 10 Cannon 4 | . . . 4 Launcher . | . . . . Special . | . . . . Kinetic 24 | 2 . 20 2 Thermal 34 | 2 . 20 12 Explosive . | . . . . Electromagnetic . | . . . . Robot Hit Streak 20 | 2 . 19 20 Robot Miss Streak 5 | 1 . 3 5 Penetration Max . | . . . . Secondary Targets 1 | . . 1 . Max Gunslinging Chain 1 | . . 1 . Shots Hit Robots 44 | 2 . 30 12 Core Hits 20 | 2 . 10 8 Critical Kills . | . . . . Critical Parts Destroyed . | . . . . Critical Strikes . | . . . . Melee Attacks . | . . . . Impact . | . . . . Slashing . | . . . . Piercing . | . . . . Sneak Attacks . | . . . . Combat Hostiles . | . . . . Follow-up Attacks . | . . . . Damage Inflicted 507 | 23 . 352 132 Guns 466 | 23 . 352 91 Cannons 41 | . . . 41 Explosions . | . . . . Melee . | . . . . Ramming . | . . . . Kinetic 236 | 12 . 200 24 Thermal 271 | 11 . 152 108 Explosive . | . . . . Electromagnetic . | . . . . Impact . | . . . . Slashing . | . . . . Piercing . | . . . . Highest Corruption . | . . . . Average Corruption . | . . . . Corruption Purged . | . . . . Corruption Blocked . | . . . . Overload Shots . | . . . . Overflow Damage . | . . . . Projectiles . | . . . . Explosions . | . . . . Melee . | . . . . Knockbacks . | . . . . Impact . | . . . . Kinetic . | . . . . Secondary . | . . . . Self-Inflicted Damage . | . . . . Shots . | . . . . Rammed . | . . . . Targets Rammed . | . . . . Kicked . | . . . . Crushed . | . . . . Highest Temperature 201 | . . 126 201 Average Temperature 66 | . . 45 109 Received Heat Transfer 486 | . . 246 240 Siege Activations . | . . . . Martial Activations . | . . . . Shielding Activations . | . . . . Robots Disrupted . | . . . . Combat Hostiles . | . . . . Robots Corrupted . | . . . . Combat Hostiles . | . . . . Parts Fried . | . . . . Impact Corruptions . | . . . . Robots Melted . | . . . . Combat Hostiles . | . . . . Parts Melted . | . . . . Heat Transferred 539 | 25 . 350 164 Parts Sabotaged . | . . . . Parts Stolen . | . . . . Parts Stripped . | . . . . Power Chain Reactions . | . . . . Alert | -11 -10 -10 -9 ------- Run | Yrd Mat Min Mat Maximum Alert Level . | . . . . Low Security (%) 100 | 100 100 100 100 Level 1 . | . . . . Level 2 . | . . . . Level 3 . | . . . . Level 4 . | . . . . Level 5 . | . . . . High Security . | . . . . Max Security . | . . . . Peak Influence 100 | 10 . 32 100 Initial 1 | . . . 1 Average 4 | 1 . 3 13 Influence Increases 227 | 10 . 100 117 Destroy 0b10 Robot/C 100 | . . 80 20 Destroy 0b10 Robot/NC 15 | 10 . . 5 Destroy Leader 22 | . . 20 2 Disable Machine 15 | . . . 15 Lose Combat Pursuer 75 | . . . 75 Influence Decreases 197 | 10 . 94 93 Entered New Map 5 | . . . 5 Time Decay 112 | 10 . 74 28 Lost Part 80 | . . 20 60 Squads Dispatched . | . . . . Investigation . | . . . . Extermination . | . . . . Reinforcement . | . . . . Assault . | . . . . Garrison . | . . . . Intercept . | . . . . Searches Triggered . | . . . . Construction Impeded . | . . . . Haulers Reinforced . | . . . . Active Scanning Responses . | . . . . Cargo Convoy Interrupts . | . . . . Stealth | -11 -10 -10 -9 --------- Run | Yrd Mat Min Mat Distress Signals 1 | . . . 1 Communications Jammed . | . . . . Distress Signals . | . . . . Times Spotted 22 | . . 4 18 Peak Tracking Total 12 | . . 2 12 Tactical Retreats 1 | . . . 1 Traps | -11 -10 -10 -9 ------- Run | Yrd Mat Min Mat Traps Triggered . | . . . . Indirectly . | . . . . Trap Hack Attempts . | . . . . Triggered . | . . . . Disarmed . | . . . . Reprogrammed . | . . . . Reused . | . . . . Traps Extracted . | . . . . Installed . | . . . . Triggered . | . . . . Machines | -11 -10 -10 -9 ---------- Run | Yrd Mat Min Mat Machines Disabled 1 | . . . 1 Max in Single Turn 1 | . . . 1 Machines Repaired . | . . . . Machines Dismantled . | . . . . Machines Sabotaged . | . . . . Overloaded Fab Kills . | . . . . Hacking | -11 -10 -10 -9 --------- Run | Yrd Mat Min Mat Machines Accessed . | . . . . Terminals . | . . . . Fabricators . | . . . . Repair Stations . | . . . . Recycling Units . | . . . . Scanalyzers . | . . . . Garrison Access . | . . . . Total Hacks . | . . . . Successful . | . . . . Failed . | . . . . Catastrophic . | . . . . Database Lockouts . | . . . . Manual . | . . . . Terminals . | . . . . Fabricators . | . . . . Repair Stations . | . . . . Recycling Units . | . . . . Scanalyzers . | . . . . Garrison Access . | . . . . Terminal Hacks . | . . . . Fabricator Hacks . | . . . . Repair Station Hacks . | . . . . Recycling Unit Hacks . | . . . . Scanalyzer . | . . . . Garrison Access Hacks . | . . . . Unauthorized Hacks . | . . . . Terminals . | . . . . Fabricators . | . . . . Repair Stations . | . . . . Recycling Units . | . . . . Scanalyzers . | . . . . Garrison Access . | . . . . Data Cores Recovered . | . . . . Used . | . . . . Hacking Detections . | . . . . Full Trace Events . | . . . . Feedback Events . | . . . . Feedback Blocked . | . . . . Robot Schematics Acquired . | . . . . Robots Built . | . . . . Authchips . | . . . . Time . | . . . . Total Robot Build Rating . | . . . . Part Schematics Acquired . | . . . . Parts Built . | . . . . Authchips . | . . . . Time . | . . . . Total Part Build Rating . | . . . . Part Studies Acquired . | . . . . Parts Repaired . | . . . . Time . | . . . . Parts Recycled . | . . . . Recycled Matter . | . . . . Retrieved Matter . | . . . . Retrieved Components . | . . . . Parts Scanalyzed . | . . . . Part Schematics Acquired . | . . . . Parts Damaged . | . . . . Bothacking | -11 -10 -10 -9 ------------ Run | Yrd Mat Min Mat Used RIF Installer . | . . . . Robots Hacked . | . . . . Non-combat . | . . . . Combat . | . . . . Robot Hacks Applied . | . . . . Relay Couplers Released . | . . . . Fabnet Peak Effective % . | . . . . Robots Rewired . | . . . . Allies Hacked . | . . . . Hacks Repelled . | . . . . Allies | -11 -10 -10 -9 -------- Run | Yrd Mat Min Mat Total Allies . | . . . . Largest Group . | . . . . Highest-Rated Group . | . . . . Highest-Rated Ally . | . . . . Total Orders . | . . . . Ally Attacks . | . . . . Total Damage . | . . . . Kills . | . . . . Allies Corrupted . | . . . . Allies Melted . | . . . . Intel | -11 -10 -10 -9 ------- Run | Yrd Mat Min Mat Active Infowar (turns) 797 | 3 34 621 139 Terrain 139 | . . . 139 Seismic 658 | 3 34 621 . Robot Analysis Total . | . . . . Derelict Logs Recovered 2 | . . 2 . Drone Launches . | . . . . Drone Recoveries . | . . . . Exploration | -11 -10 -10 -9 ------------- Run | Yrd Mat Min Mat Turns Passed 1128 | 81 34 851 162 Spaces Moved 639 | 47 22 469 101 Core 17 | 17 . . . Treads 530 | 30 22 469 9 Legs . | . . . . Wheels 92 | . . . 92 Hover . | . . . . Flight . | . . . . Fastest Speed 50 | 50 160 160 86 Average Speed 147 | 120 160 160 99 Slowest Speed 160 | 160 160 160 160 Overloaded Moves . | . . . . Propulsion Burnouts . | . . . . Robots Hopped . | . . . . Potential Cave-ins . | . . . . Cave-ins Triggered . | . . . . Exploration Rate (%) 30 | 4 7 95 17 Regions Visited 3 Branch Regions 1 Pre-discovered Areas 2 | . . 2 . Known Exits Taken . | . . . . Unknown Exits Taken 3 | 1 1 1 . Scrap Searched 1 | . . 1 . Spaces Dug . | . . . . Terrain Destroyed . | . . . . Melee . | . . . . Projectile . | . . . . AOE . | . . . . Terrain Rammed . | . . . . Walls Destroyed . | . . . . Machines Disabled . | . . . . Actions | -11 -10 -10 -9 --------- Run | Yrd Mat Min Mat Total 769 | 67 21 532 149 Wait 46 | . . 38 8 Move 636 | 46 21 468 101 Hop . | . . . . Pick Up 29 | 12 . 4 13 Fast Attach 1 | 1 . . . Attach 12 | 6 . . 6 Detach . | . . . . Swap 7 | . . . 7 Drop 7 | . . 2 5 Fire 31 | 2 . 20 9 Melee . | . . . . Ram . | . . . . Kick . | . . . . Crush . | . . . . Escape Stasis . | . . . . Rewire . | . . . . Trap . | . . . . Miscellaneous . | . . . . Route ------- -11/Scrapyard -10/Materials -10/Mines (discovered 3 exits: [*Mat x2] / [*Sub]) -9/Materials (discovered 1 exit: Mat) History --------- Turn | Location | Event 9 | -11/Scrapyard | Discovered new exit (range 13) 82 | -11/Scrapyard | Entered Materials 86 | -10/Materials | Discovered new exit (range 9) 116 | -10/Materials | Entered Mines 309 | -10/Mines | Build established: Mutant 317 | -10/Mines | Learned location of 1 exit from Materials 521 | -10/Mines | Learned location of Storage (-9) 567 | -10/Mines | Discovered new exit (range 5) 695 | -10/Mines | Discovered new exit (range 8) 844 | -10/Mines | A weapon hastily lodged in a ceiling crevice suddenly fell to the ground 924 | -10/Mines | Learned location of Recycling (-9) 946 | -10/Mines | Discovered new exit (range 9) 967 | -10/Mines | Entered Materials 967 | -9/Materials | Evolved 2 slots: Propulsion x1, Utility x1 968 | -9/Materials | Identified exit to Materials 1129 | -9/Materials | Self-destructed Last Messages --------------- 01051_ K-01 Serf collects debris. 01052_ Acquired Hvy. Particle Gun. 01057_ K-01 Serf collects debris. 01060_ Acquired Imp. Terrain Scan Processor. 01062_ K-01 Serf collects debris. 01087_ K-01 Serf cleans the Processing Tank. 01093_ K-01 Serf destroyed. 01102_ Processing Tank disabled. 01104_ Ion Engine destroyed. 01105_ Destroyed Flight Unit. 01105_ S-10 Pest destroyed. 01115_ K-01 Serf collects debris. 01117_ Wheel destroyed. 01123_ Com. Wheel destroyed. 01123_ Critical hit (Burn: +37). 01124_ Spread Laser destroyed. [Achievement: There's More Where That Came From] 01125_ Wheel destroyed. 01128_ Assault Rifle destroyed. Map ----- +----------------------------------------------------+ | ?????????????????????????????????????????????????? | | ?????????????????????????????????????????????????? | | ?????????????????????????????????????????????????? | | ?????????????????????????????????????????????????? | | ?????????????????????????????????????????????????? | | ?????????????????????????????????????????????????? | | ?????????????????????????????????????????????????? | | ?????????????????????????????????????????????????? | | ?????????????????????????????????????????????????? | | ????????????????????????? ???????????????????????? | | ?????????????????????????????????????????????????? | | ????????????????????"???" ??#????????????????????? | | ???????????????? ????"?"? ???#????"??????????????? | | ?????????????????????""?"?#??????????????????????? | | ??????????????? #???"?????#?#??# ???????????????? | | ????????????? ? ?#?? ??????#????? ??? ???????????? | | ??????????### ##############?#???##+???????????? | | ????????#???# ?? ???????????? | | ???????????## ???????????